Cogmind - Beta 14 @@@ ROGUE MODE // 2024.08.30 @ 15:41:48 Player: SKIP Result: Destroyed by S-10 Pest with Light Assault Rifle Performance ------------- Evolutions (0) 0 Regions Visited (2) 400 Robots Destroyed (22) 110 Value Destroyed (615) 615 Prototype IDs (3) 60 Alien Tech Used (0) 0 Bonus (0) 0 TOTAL SCORE: 1185 Bonus ------- None Cogmind --------- Core Integrity 0/250 Matter 265/300 Energy 160/160 System Corruption 2% Temperature Cool (56) Movement Treading (240) Ox1 Location -10/Mines Parts ------- > --- POWER (1) -------- Light Nuclear Core > --- PROPULSION (2) --- Light Treads Light Treads > --- UTILITY (2) ------ Improved Heat Sink High-capacity Storage Unit > --- WEAPON (2) ------- Beam Cannon Bore Cannon > --- INVENTORY (20) --- Light Ion Engine Light Ion Engine Aluminum Leg Aluminum Leg Improved Heat Sink Improved Heat Sink Medium Matter Pod (100) Sensor Array Improved Terrain Scanner Improved Terrain Scanner Seismic Detector Transport Network Coupler Targeting Computer Mining Laser Peak State ------------ > --- POWER ------------ Light Nuclear Core > --- PROPULSION ------- Light Treads Light Treads > --- UTILITY ---------- Improved Heat Sink High-capacity Storage Unit > --- WEAPON ----------- Beam Cannon Bore Cannon > --- INVENTORY -------- Light Ion Engine Aluminum Leg Aluminum Leg Improved Heat Sink Improved Heat Sink Medium Matter Pod Sensor Array Improved Terrain Scanner Improved Terrain Scanner Seismic Detector Transport Network Coupler Targeting Computer Mining Laser [Rating: 17] Favorites ----------- Power Ion Engine Engine Ion Engine Power Core Light Nuclear Core Propulsion Light Treads Treads Light Treads Leg Aluminum Leg Utility Improved Heat Sink Device Improved Heat Sink Storage Medium Storage Unit Weapon Medium Laser Energy Gun Medium Laser Energy Cannon Beam Cannon Ballistic Gun Light Assault Rifle Ballistic Cannon Bore Cannon Launcher Grenade Launcher Build | -11 -10 -10 ------- Run | Yrd Mat Min Slots Evolved . | . . . Power . | . . . Propulsion . | . . . Utility . | . . . Weapon . | . . . Parts Attached 22 | 6 11 5 Power 3 | 1 1 1 Engine 2 | 1 1 . Core 1 | . . 1 Reactor . | . . . Propulsion 5 | 2 3 . Treads 4 | 2 2 . Leg 1 | . 1 . Wheel . | . . . Hover . | . . . Flight . | . . . Utility 6 | 1 5 . Device 3 | . 3 . Storage 3 | 1 2 . Processor . | . . . Hackware . | . . . Protection . | . . . Artifact . | . . . Weapon 8 | 2 2 4 Energy Gun 1 | . 1 . Energy Cannon 2 | . 1 1 Ballistic Gun 2 | 2 . . Ballistic Cannon 1 | . . 1 Launcher 2 | . . 2 Special Weapon . | . . . Impact Weapon . | . . . Slashing Weapon . | . . . Piercing Weapon . | . . . Special Melee Weapon . | . . . Unidentified Prototypes . | . . . Parts Lost 5 | . 1 4 Power 1 | . . 1 Propulsion . | . . . Utility . | . . . Weapon 4 | . 1 3 Highest Loss Streak 3 | . 1 3 To Critical Strikes . | . . . Average Slot Usage (%) 96 | . 98 90 Engine 12 | . 14 4 Treads 24 | . 23 28 Leg 3 | . 3 . Device 13 | . 12 14 Storage 14 | . 14 14 Energy Gun 10 | . 12 4 Energy Cannon 9 | . 9 9 Ballistic Gun 5 | . 6 . Ballistic Cannon 1 | . . 9 Peak Build Rating 17 | 7 10 17 Average Rating 9 | 4 9 13 On Entrance 5 | . 7 10 Naked Turns . | . . . Heaviest Build 58 | 13 51 58 Greatest Support 40 | 40 40 40 Greatest Overweight (x) 3 | 3 2 1 Average Overweight (x) . | . . 1 Largest Inventory Capacity 20 | 8 20 20 Average Capacity 14 | 7 12 20 Most Carried 16 | 8 13 16 Average Carried 10 | 5 10 14 Final Capacity 20 | 8 20 20 Final Carried 14 | 8 13 14 Class Distribution -------------------- 100% | Mutant Dominant Class ---------------- Mutant | -10/Materials Mutant | -10/Mines Resources | -11 -10 -10 ----------- Run | Yrd Mat Min Matter Collected 785 | 280 328 177 Remotely . | . . . Salvage Created 870 | 114 639 117 Parts 39 | 8 28 3 Haulers Intercepted 1 | . 1 . Recyclers Shooed . | . . . Parts Field Recycled . | . . . Retrieved Matter . | . . . Parts Self-Destructed . | . . . Prevented . | . . . Kills | -11 -10 -10 ------- Run | Yrd Mat Min Combat Hostiles Destroyed 29 | . 13 16 Guns 11 | . 8 3 Cannons 8 | . 4 4 AOE 9 | . . 9 Classes Destroyed 9 | 2 4 3 Worker 1 | . . 1 Builder 1 | . 1 . Tunneler 2 | 2 . . Hauler 1 | . 1 . Recycler 1 | 1 . . Operator 1 | . 1 . Swarmer 1 | . . 1 Grunt 14 | . 13 1 Assembled 14 | . . 14 Best Kill Streak 12 | 2 5 12 Combat Bots Only 12 | . 5 12 Max Kills in Single Turn 5 | 1 1 5 Gunslinging . | . . . Exploded 4 | . . 4 Melee . | . . . Uniques/NPCs Destroyed . | . . . Combat | -11 -10 -10 -------- Run | Yrd Mat Min Hostile Shots Fired 137 | . 85 52 Missed 40 | . 22 18 Damage Taken 1440 | . 794 646 Core 252 | . 163 89 Absorbed by Shields . | . . . Regen/Repaired (Parts) 98 | . 98 . Core Remaining (%) 100 | 100 . . Volleys Fired 97 | 5 66 26 Largest 2 | 2 2 2 Hottest 117 | 40 110 117 Shots Fired 187 | 10 132 45 Gun 134 | 10 111 13 Cannon 44 | . 21 23 Launcher 9 | . . 9 Special . | . . . Kinetic 90 | 10 67 13 Thermal 88 | . 65 23 Explosive 9 | . . 9 Electromagnetic . | . . . Robot Hit Streak 11 | 2 11 6 Robot Miss Streak 5 | 2 5 4 Penetration Max . | . . . Secondary Targets 3 | . 3 . Max Gunslinging Chain 1 | . 1 . Shots Hit Robots 123 | 4 95 24 Core Hits 62 | 5 32 25 Critical Kills 1 | . . 1 Critical Parts Destroyed 1 | . . 1 Critical Strikes 5 | . 3 2 Burn 3 | . 3 . Destroy 2 | . . 2 Melee Attacks . | . . . Impact . | . . . Slashing . | . . . Piercing . | . . . Sneak Attacks . | . . . Combat Hostiles . | . . . Follow-up Attacks . | . . . Damage Inflicted 1881 | 56 1110 715 Guns 1082 | 56 901 125 Cannons 375 | . 190 185 Explosions 384 | . . 384 Melee . | . . . Ramming 40 | . 19 21 Kinetic 666 | 56 513 97 Thermal 791 | . 578 213 Explosive 384 | . . 384 Electromagnetic . | . . . Impact . | . . . Slashing . | . . . Piercing . | . . . Highest Corruption 2 | . 2 2 Average Corruption 2 | . 2 2 Corruption Purged . | . . . Corruption Blocked . | . . . Effects 13 | . 12 1 Message Errors 6 | . 6 . Matter Fused 3 | . 3 . Energy Discharges 1 | . 1 . Data Loss (minor) 3 | . 2 1 Overload Shots . | . . . Overflow Damage 11 | . . 11 Projectiles . | . . . Explosions 11 | . . 11 Melee . | . . . Knockbacks 2 | . . 2 Impact . | . . . Kinetic 2 | . . 2 Secondary . | . . . Self-Inflicted Damage 135 | . . 135 Shots 4 | . . 4 Rammed 5 | . 3 2 Targets Rammed 6 | . 4 2 Kicked . | . . . Crushed 1 | . 1 . Highest Temperature 162 | . 162 99 Average Temperature 29 | . 27 39 Received Heat Transfer 563 | . 468 95 Siege Activations . | . . . Robots Corrupted . | . . . Combat Hostiles . | . . . Parts Fried . | . . . Impact Corruptions . | . . . Robots Melted 1 | . 1 . Combat Hostiles 1 | . 1 . Parts Melted 4 | . 4 . Heat Transferred 2331 | . 1776 555 Parts Sabotaged . | . . . Parts Stolen . | . . . Parts Stripped . | . . . Power Chain Reactions . | . . . Alert | -11 -10 -10 ------- Run | Yrd Mat Min Peak Influence 194 | 15 194 112 Initial 9 | . 9 5 Average 50 | 3 49 69 Maximum Alert Level . | . . . Low Security (%) 100 | 100 100 100 Level 1 . | . . . Level 2 . | . . . Level 3 . | . . . Level 4 . | . . . Level 5 . | . . . High Security . | . . . Max Security . | . . . Squads Dispatched 2 | . 2 . Investigation 1 | . 1 . Extermination . | . . . Reinforcement 1 | . 1 . Assault . | . . . Garrison . | . . . Intercept . | . . . Searches Triggered . | . . . Construction Impeded . | . . . Haulers Reinforced . | . . . Active Scanning Responses . | . . . Cargo Convoy Interrupts . | . . . Stealth | -11 -10 -10 --------- Run | Yrd Mat Min Distress Signals 1 | . 1 . Communications Jammed . | . . . Distress Signals . | . . . Times Spotted 54 | . 34 20 Peak Tracking Total 14 | . 5 14 Tactical Retreats 2 | . 1 1 Traps | -11 -10 -10 ------- Run | Yrd Mat Min Traps Triggered 2 | . 2 . Indirectly . | . . . Trap Hack Attempts . | . . . Triggered . | . . . Disarmed . | . . . Reprogrammed . | . . . Reused . | . . . Traps Extracted . | . . . Installed . | . . . Triggered . | . . . Machines | -11 -10 -10 ---------- Run | Yrd Mat Min Machines Disabled 2 | . . 2 Max in Single Turn 1 | . . 1 Machines Repaired . | . . . Machines Dismantled . | . . . Machines Sabotaged . | . . . Overloaded Fab Kills . | . . . Hacking | -11 -10 -10 --------- Run | Yrd Mat Min Machines Accessed 8 | . 8 . Terminals 5 | . 5 . Fabricators . | . . . Repair Stations 1 | . 1 . Recycling Units 2 | . 2 . Scanalyzers . | . . . Garrison Access . | . . . Total Hacks 19 | . 19 . Successful 12 | . 12 . Failed 7 | . 7 . Catastrophic 1 | . 1 . Database Lockouts . | . . . Manual 12 | . 12 . Terminals 13 | . 13 . Fabricators . | . . . Repair Stations 3 | . 3 . Recycling Units 3 | . 3 . Scanalyzers . | . . . Garrison Access . | . . . Terminal Hacks 3 | . 3 . Prototype ID Bank 2 | . 2 . Hauler Manifests 1 | . 1 . Fabricator Hacks . | . . . Repair Station Hacks 2 | . 2 . Scan Component 1 | . 1 . Repair 1 | . 1 . Recycling Unit Hacks 2 | . 2 . Retrieve Matter 1 | . 1 . Retrieve Components 1 | . 1 . Scanalyzer . | . . . Garrison Access Hacks . | . . . Unauthorized Hacks 5 | . 5 . Terminals 4 | . 4 . Assimilate 3 | . 3 . Operators 1 | . 1 . Fabricators . | . . . Repair Stations . | . . . Recycling Units 1 | . 1 . Monitor 1 | . 1 . Scanalyzers . | . . . Garrison Access . | . . . Data Cores Recovered . | . . . Used . | . . . Hacking Detections 8 | . 8 . Full Trace Events 1 | . 1 . Feedback Events . | . . . Feedback Blocked . | . . . Robot Schematics Acquired . | . . . Robots Built . | . . . Authchips . | . . . Time . | . . . Total Robot Build Rating . | . . . Part Schematics Acquired . | . . . Parts Built . | . . . Authchips . | . . . Time . | . . . Total Part Build Rating . | . . . Parts Repaired 1 | . 1 . Time 26 | . 26 . Parts Recycled . | . . . Recycled Matter . | . . . Retrieved Matter 75 | . 75 . Retrieved Components 10 | . 10 . Parts Scanalyzed . | . . . Part Schematics Acquired . | . . . Parts Damaged . | . . . Bothacking | -11 -10 -10 ------------ Run | Yrd Mat Min Used RIF Installer . | . . . Robots Hacked . | . . . Non-combat . | . . . Combat . | . . . Robot Hacks Applied . | . . . Relay Couplers Released . | . . . Fabnet Peak Effective % . | . . . Robots Rewired . | . . . Allies Hacked . | . . . Hacks Repelled . | . . . Allies | -11 -10 -10 -------- Run | Yrd Mat Min Total Allies . | . . . Largest Group . | . . . Highest-Rated Group . | . . . Highest-Rated Ally . | . . . Total Orders . | . . . Ally Attacks . | . . . Total Damage . | . . . Kills . | . . . Allies Corrupted . | . . . Allies Melted . | . . . Intel | -11 -10 -10 ------- Run | Yrd Mat Min Robot Analysis Total . | . . . Derelict Logs Recovered 1 | . . 1 Drone Launches . | . . . Drone Recoveries . | . . . Exploration | -11 -10 -10 ------------- Run | Yrd Mat Min Turns Passed 2985 | 158 2261 566 Spaces Moved 1247 | 76 971 200 Core 15 | 15 . . Treads 1232 | 61 971 200 Legs . | . . . Wheels . | . . . Hover . | . . . Flight . | . . . Fastest Speed 50 | 50 160 240 Average Speed 205 | 160 202 240 Slowest Speed 320 | 200 320 240 Overloaded Moves . | . . . Propulsion Burnouts . | . . . Robots Hopped . | . . . Cave-ins Triggered . | . . . Exploration Rate (%) 43 | 4 93 32 Regions Visited 2 Branch Regions 1 Pre-discovered Areas 2 | . . 2 Known Exits Taken . | . . . Unknown Exits Taken 2 | 1 1 . Scrap Searched . | . . . Spaces Dug . | . . . Terrain Destroyed 76 | . . 76 Melee . | . . . Projectile 8 | . . 8 AOE 68 | . . 68 Terrain Rammed . | . . . Walls Destroyed . | . . . Machines Disabled . | . . . Actions | -11 -10 -10 --------- Run | Yrd Mat Min Total 1488 | 104 1146 238 Wait 74 | . 74 . Move 1245 | 75 970 200 Hop . | . . . Pick Up 32 | 16 11 5 Fast Attach 4 | . 4 . Attach 12 | 6 2 4 Detach . | . . . Swap 6 | . 5 1 Drop 12 | 2 10 . Fire 97 | 5 66 26 Melee . | . . . Ram . | . . . Kick . | . . . Crush 6 | . 4 2 Escape Stasis . | . . . Rewire . | . . . Trap . | . . . Miscellaneous . | . . . Route ------- -11/Scrapyard -10/Materials (discovered 4 exits: [*Mat x3] / [*Min]) -10/Mines (discovered 1 exit: [*Mat]) History --------- Turn | Location | Event 10 | -11/Scrapyard | Discovered new exit (range 15) 159 | -11/Scrapyard | Entered Materials 312 | -10/Materials | Build established: Mutant 567 | -10/Materials | Discovered new exit (range 15) 601 | -10/Materials | Discovered new exit (range 14) 763 | -10/Materials | Repaired Lgt. Treads 990 | -10/Materials | Core integrity fell below 50% 1120 | -10/Materials | Discovered new exit (range 16) 1795 | -10/Materials | Discovered new exit (range 14) 2420 | -10/Materials | Entered Mines 2421 | -10/Mines | Assembled infested the area 2426 | -10/Mines | Assisted by a Guerilla fighting off Assembled 2466 | -10/Mines | Core integrity fell below 20% 2495 | -10/Mines | Destroyed 12 combat bots 2630 | -10/Mines | Lost 3 parts (1p2w) 2929 | -10/Mines | Learned location of Storage (-9) 2961 | -10/Mines | Discovered new exit (range 13) 2986 | -10/Mines | Destroyed by S-10 Pest with Light Assault Rifle Last Messages --------------- 02925_ Acquired 10 matter. 02929_ A derelict emerges from the shadows: "Are any of them following you? I'm here trying to lose some heat after our second raid on Storage failed. Whatever you do stay away from that place, they've tightened security following our previous successful raids." World map updated: -9/Storage. 02931_ QP-0IY(g): "We scattered so the Unaware couldn't effectively use their advantage in numbers, and I suggest you do the same." 02931_ QP-0IY(g) slips back into the shadows. 02961_ Slammed into K-01 Serf. 02961_ K-01 Serf destroyed. 02961_ EXIT=FOUND 02966_ Acquired Lgt. Ion Engine. 02970_ K-01 Serf destroyed. 02972_ S-10 Pest destroyed. 02977_ U-05 Engineer builds a Wall. 02978_ HV Slug penetrates Wall. Map ----- +----------------------------------------------------+ | ?????????????????????????????????????????????????? | | ?????????????????????????????????????????????????? | | ????????####?????????????????????????????????????? | | ??????### ##????????????????????????????????????? | | ?????## #####????????????????????????????????? | | ?????# ##???????????????????????????????? | | ###### ####????????????????????????????? | | " ##???????????????????????????? | | #???????????????????????????? | | ## #???????????????????????????? | | ## ## #???????????????????????????? | | ### #### ##???????????????????????????? | | ###?#######??## ## ####??????????????????????????? | | ?????????????## ## # #?????????s #??????????????? | | ????######???## # ##??????? #;?????????????? | | ????############## # #??????? #?????????????? | | #???## # # #####?????? #?????????????? | | ##??## " ### # ##??????# #?????????????? | | #??## # # # #????## ##????????????? | | #??## ### #####???;% % ###??????????? | | #???# % %% # #??#%%= #??????????? | | #???# ##### ##### % ????????????? | | ##???# # #?# #??#